bitfinex-derivatives/quotes_ETHF0:USTF0_20250404
["timestamp","ask_amount","ask_price","bid_price","bid_amount"]
[1743735355965,1.11958001,1787.1,1787.0,1.41]
[1743735363468,1.11958001,1787.1,1787.0,4.6107]
[1743735365667,1.11958001,1787.1,1787.0,5.73031]
[1743735366074,1.11958001,1787.1,1787.0,4.6107]
[1743735366771,1.11958001,1787.1,1787.0,5.73031]
[1743735366967,1.11961,1787.0,1786.9,3.2161848]
[1743735368870,1.11961,1787.0,1786.9,4.6913848]
[1743735369073,1e-08,1787.1,1787.0,1.11961]
[1743735369272,1e-08,1787.1,1787.0,6.72181]
[1743735369472,1e-08,1787.1,1787.0,15.91521]
[1743735369876,1e-08,1787.1,1787.0,13.41521]
[1743735370182,1e-08,1787.1,1787.0,15.91521]
[1743735370882,2.79783,1787.8,1787.0,15.91521]
[1743735370883,1.11915,1787.8,1787.7,1.11917]
[1743735371185,1.11915,1787.8,1787.7,4.32697]
[1743735371477,1.11915,1787.8,1787.7,3.2078]
[1743735371678,1.11915,1787.8,1787.7,4.32698]
[1743735371879,1.11915,1787.8,1787.7,3.2078]
[1743735372573,1.11915,1787.8,1787.7,4.6093]
[1743735373573,1.11915,1787.8,1787.7,5.72848]
[1743735373780,1.1274848,1787.9,1787.7,5.72848]
[1743735374072,1.1274848,1787.9,1787.8,1.11911]
[1743735374278,1.11911,1787.8,1787.7,5.72843]
[1743735374472,1.1274848,1787.9,1787.7,5.72843]
[1743735374675,1.11911,1787.8,1787.7,5.72843]
[1743735374875,0.0083848,1787.9,1787.7,4.6093]
[1743735375070,0.0083848,1787.9,1787.7,5.72845]
[1743735375271,1.1274748,1787.9,1787.8,1.11911]
[1743735376679,1.1274748,1787.9,1787.7,6.48953]
[1743735376972,1.1274748,1787.9,1787.7,10.58653]
[1743735377171,1.1274748,1787.9,1787.8,1.11911]
[1743735378774,0.0083848,1787.9,1787.8,1.11911]
[1743735378975,0.0083848,1787.9,1787.8,3.61911]
[1743735379181,1.11886,1788.2,1788.1,1.11887]
[1743735379382,1.11886,1788.2,1788.1,3.2078]
[1743735379680,1.11899,1788.0,1787.9,3.2078]
[1743735380774,1.11899,1788.0,1787.9,4.32685]
[1743735381080,0.0083848,1788.1,1787.9,3.2078]
[1743735381281,1.11899,1788.0,1787.9,4.3268]
[1743735381583,1.1273548,1788.1,1788.0,1.11899]
[1743735381880,1.1273748,1788.1,1788.0,1.11899]
[1743735382780,1.1273648,1788.1,1788.0,1.11899]
[1743735382975,1.11899,1788.0,1787.9,4.32682]
[1743735383983,0.0083848,1788.1,1788.0,1.11899]
[1743735384183,1.1273148,1788.1,1788.0,1.11899]
[1743735385784,1.11899,1788.0,1787.9,4.32681]
[1743735386078,1.11924,1787.6,1787.5,3.2078]
[1743735386285,2.79813,1787.6,1787.3,4.3272]
[1743735386481,1.11936,1787.4,1787.3,4.3272]
[1743735386783,1.11936,1787.4,1787.3,3.2078]
[1743735386971,1.11936,1787.4,1787.3,4.32723]
[1743735387376,2.41445,1787.5,1787.4,1.11936]
[1743735387777,1.11927,1787.6,1787.5,1.11928]
[1743735387976,4.09291,1787.8,1787.5,3.2078]
[1743735388174,1.11924,1787.6,1787.5,3.2078]
[1743735388381,1.11924,1787.6,1787.5,4.3271]
[1743735388580,1.11924,1787.6,1787.5,3.2078]
[1743735388781,1.11936,1787.4,1787.3,3.2078]
[1743735388986,1.11936,1787.4,1787.3,4.32723]
[1743735389185,1.11927,1787.6,1787.5,1.11925]
[1743735389392,1.11923,1787.7,1787.6,1.11922]
[1743735389591,2.41446,1787.8,1787.7,1.11918]
[1743735389792,1.11919,1787.7,1787.6,1.11919]
[1743735389995,1.11916,1787.8,1787.7,1.11915]
[1743735390291,1.1191,1787.9,1787.8,1.1191]
[1743735390482,1.1191,1787.9,1787.8,4.3269]
[1743735390688,1.11903,1788.0,1787.9,1.11903]
[1743735390893,1.11904,1788.0,1787.9,1.11903]
[1743735391098,0.0083848,1788.1,1787.8,3.2078]
[1743735391288,1.1273148,1788.1,1788.0,3.2078]
[1743735391487,1.1273148,1788.1,1788.0,4.32679]
[1743735391692,1.1273148,1788.1,1788.0,3.2078]
[1743735391993,2.4226148,1788.1,1788.0,3.2078]
[1743735392193,1.1273148,1788.1,1788.0,3.2078]
[1743735394698,1.1273148,1788.1,1788.0,4.6856]
[1743735395893,1.1273148,1788.1,1788.0,5.80459]
[1743735396099,0.0083848,1788.1,1788.0,5.80459]
[1743735397101,0.0083848,1788.1,1788.0,4.6856]
[1743735397298,1.1273148,1788.1,1788.0,4.6856]
[1743735397501,1.1273148,1788.1,1788.0,5.80459]
[1743735397703,1.1273148,1788.1,1788.0,4.6856]
[1743735398003,1.1273148,1788.1,1788.0,5.80459]
[1743735399007,0.0083848,1788.1,1788.0,5.80459]
[1743735399305,1.11877,1788.4,1788.3,1.1188]
[1743735399505,1.11883,1788.3,1788.2,1.1188]
[1743735399806,1.11883,1788.3,1788.2,5.8189]
[1743735400200,1.11879,1788.4,1788.3,1.11877]
[1743735400401,2.79655,1788.6,1788.2,4.7001]
[1743735400597,0.0083848,1788.4,1788.3,4.3266]
[1743735401703,1.1271248,1788.4,1788.3,4.3266]
[1743735402803,0.0083848,1788.4,1788.3,4.3266]
[1743735403004,1.1271248,1788.4,1788.3,4.3266]
[1743735404605,1.1271248,1788.4,1788.3,3.2078]
[1743735405303,1.11886,1788.2,1788.1,0.0083848]
[1743735405697,3.61886,1788.2,1788.1,0.0083848]
[1743735405897,4.35126,1788.2,1788.1,0.0083848]
[1743735406092,5.64536,1788.2,1788.1,0.0083848]
[1743735406699,3.14536,1788.2,1788.1,0.0083848]
[1743735406901,1.11905,1787.9,1787.8,1.11907]
[1743735407701,1.11911,1787.8,1787.7,4.32695]
[1743735407908,1.11911,1787.8,1787.7,3.2078]
[1743735408307,1.11911,1787.8,1787.7,4.32698]
[1743735409208,1.11911,1787.8,1787.7,3.2078]
[1743735409601,1.11911,1787.8,1787.7,4.32698]
[1743735409904,1.11911,1787.8,1787.7,3.2078]
[1743735410705,1.11918,1787.7,1787.6,0.0083848]
[1743735411005,2.41388,1787.7,1787.6,0.0083848]
[1743735413105,1.11918,1787.7,1787.6,0.0083848]
[1743735413516,1.11917,1787.8,1787.7,1.11914]
[1743735413707,1.11911,1787.8,1787.7,5.02455]
[1743735414107,1.11911,1787.8,1787.7,5.02458]
[1743735414309,1.11911,1787.8,1787.7,3.9054]
[1743735414599,1.11911,1787.8,1787.7,5.02458]
[1743735414806,1.11911,1787.8,1787.7,6.55588]
[1743735415016,1.11911,1787.8,1787.7,6.55583]
[1743735415216,1.11911,1787.8,1787.7,5.4367]
[1743735415417,1.11911,1787.8,1787.7,6.55588]
[1743735415913,1.11911,1787.8,1787.7,5.4367]
[1743735417515,1.11911,1787.8,1787.7,6.55588]
[1743735417915,1.1191,1787.9,1787.8,1.1191]
[1743735418120,1.1191,1787.9,1787.8,0.6998]
[1743735418508,1.11911,1787.8,1787.7,7.9384]
[1743735418714,1.11911,1787.8,1787.7,3.9054]
[1743735420013,1.11911,1787.8,1787.7,3.2078]
[1743735420717,1.1191,1787.9,1787.8,1.11911]
[1743735420920,1.11903,1788.0,1787.9,1.11903]
[1743735421126,1.11898,1788.1,1788.0,1.11899]
[1743735421717,1.11899,1788.0,1787.9,3.2078]
[1743735421923,1.11899,1788.0,1787.7,3.2078]
[1743735421924,1.11918,1787.8,1787.7,3.2078]
[1743735422521,1.11918,1787.8,1787.7,4.32698]
[1743735423027,1.2956,1787.9,1787.7,4.32698]
[1743735423028,10.04601,1788.2,1787.7,3.2078]
[1743735423218,1.11905,1788.0,1787.9,1.11903]
[1743735423417,2.79674,1788.5,1787.9,3.2078]
[1743735423617,1.2956,1788.5,1788.3,1.1188]
[1743735423914,3.2078,1788.7,1788.3,4.3266]
[1743735424116,1.11861,1788.7,1788.3,4.3266]
[1743735424812,1.11855,1788.8,1788.3,10.8726]
[1743735425011,1e-08,1788.4,1788.3,10.8726]
[1743735425217,1.11841,1789.0,1788.8,1.11847]
[1743735425420,1.11841,1789.0,1788.8,4.32627]
[1743735425920,1.11833,1789.1,1788.9,1.11839]
[1743735426127,1.11833,1789.1,1789.0,3.2078]
[1743735426319,1.1183,1789.1,1789.0,4.32616]
[1743735426622,1.1266448,1789.2,1789.0,3.2078]
[1743735426823,1.1183,1789.1,1789.0,3.2078]
[1743735427021,0.0083848,1789.2,1789.1,1.1183]
[1743735427323,1.1266248,1789.2,1789.1,1.1183]
[1743735427520,1.1266248,1789.2,1789.0,4.32611]
[1743735427717,1.1183,1789.1,1789.0,3.2078]
[1743735428022,1.1266448,1789.2,1789.0,3.2078]
[1743735428214,0.0083848,1789.2,1789.1,1.1183]
[1743735428417,1.1266348,1789.2,1789.0,4.32612]
[1743735428618,0.0083848,1789.2,1789.1,1.1183]
[1743735429114,1.1266448,1789.2,1789.0,4.32612]
[1743735429627,0.0083848,1789.2,1789.1,1.1183]
[1743735431722,0.7397,1789.7,1789.1,1.1183]
[1743735431723,1.11796,1789.7,1789.5,1.11801]
[1743735431917,88.6416973,1789.9,1789.5,4.3258]
[1743735432118,27.5326973,1789.9,1789.5,3.2078]
[1743735432323,1.11799,1789.6,1789.5,3.2078]
[1743735432626,1.11798,1789.7,1789.5,4.32584]
[1743735433032,1.1262948,1789.8,1789.5,3.2078]
[1743735433324,0.0083848,1789.8,1789.5,3.2078]
[1743735433520,0.0083848,1789.8,1789.7,1.11793]
[1743735433726,1.1262448,1789.8,1789.7,3.2078]
[1743735433922,1.1262448,1789.8,1789.7,4.6193]
[1743735434225,1.1262448,1789.8,1789.7,1.4115]
[1743735435024,0.0083848,1789.8,1789.7,2.52943]
[1743735435525,1.1262448,1789.8,1789.7,1.4115]
[1743735435732,0.0083848,1789.8,1789.7,2.52943]
[1743735435917,0.0083848,1789.8,1789.7,6.55443]
[1743735436122,0.0083848,1789.8,1789.7,1.4115]
[1743735436424,1.1262448,1789.8,1789.7,1.4115]
[1743735437115,0.0083848,1789.8,1789.7,2.52943]
[1743735437727,0.0083848,1789.8,1789.7,3.22933]
[1743735438632,0.0083848,1789.8,1789.7,3.93423]
[1743735440731,1.1262448,1789.8,1789.7,1.4115]
[1743735441127,3.6262448,1789.8,1789.7,1.4115]
[1743735441324,1.11805,1789.5,1789.4,1.4328]
[1743735441526,1.11838,1789.0,1788.9,1.11843]
[1743735441724,1.11838,1789.0,1788.9,5.75903]
[1743735441926,1.11833,1789.1,1789.0,1.11834]
[1743735442143,1.11833,1789.1,1789.0,2.55114]
[1743735442632,1.2959,1789.2,1789.1,1.1183]
[1743735442633,1.11826,1789.2,1789.1,1.1183]
[1743735442835,5.15522,1789.3,1789.2,1.11824]
[1743735443132,1.11822,1789.3,1789.2,2.55104]
[1743735443526,1.11816,1789.4,1789.3,1.11817]
[1743735443731,1.118,1789.6,1789.3,6.0031]
[1743735444026,1.118,1789.6,1789.5,1.118]
[1743735444223,1.11805,1789.5,1789.4,3.36517]
[1743735444632,1.11805,1789.6,1789.5,1.11805]
[1743735444832,1.11805,1789.6,1789.5,4.7458]
[1743735445035,1.11805,1789.6,1789.5,5.86385]
[1743735445230,1.11805,1789.6,1789.5,3.2078]
[1743735445734,3.61805,1789.6,1789.5,3.2078]
[1743735445928,1.11811,1789.4,1789.3,1.538]
[1743735447136,1.11824,1789.2,1789.1,3.2078]
[1743735447332,1.11824,1789.2,1789.0,0.7407]
[1743735447333,1.1183,1789.1,1789.0,1.5245]
[1743735447534,1.1183,1789.1,1789.0,2.64286]
[1743735448036,1.11829,1789.2,1789.1,1.11828]
[1743735448238,1.11829,1789.2,1789.1,5.02288]
[1743735448736,1.11829,1789.2,1789.1,3.9046]
[1743735448936,1.11829,1789.2,1789.1,5.0229]
[1743735449128,1.11823,1789.3,1789.2,1.11821]
[1743735449328,1.11823,1789.3,1789.2,1.5245]
[1743735449529,1.11823,1789.3,1789.2,2.64274]
[1743735450640,5.60605,1789.7,1789.2,1.5245]
[1743735450838,1.11813,1789.4,1789.3,1.11815]
[1743735451041,1.11809,1789.5,1789.4,1.1181]
[1743735451342,1.11811,1789.4,1789.2,1.5245]
[1743735451638,1.11818,1789.3,1789.2,6.6727]
[1743735452143,1.11818,1789.3,1789.2,5.5545]
[1743735452332,1.11818,1789.3,1789.2,1.5245]
[1743735452743,4.09059,1789.6,1789.2,1.5245]
[1743735452940,1.11805,1789.5,1789.4,3.2078]
[1743735453143,1.11805,1789.5,1789.4,4.6317]
[1743735454949,1.11805,1789.5,1789.4,1.4239]
[1743735455439,1.11805,1789.5,1789.4,4.6317]
[1743735455735,2.79538,1789.4,1789.1,0.6968]
[1743735455941,1.11818,1789.3,1789.2,1.5331]
[1743735457535,1.11818,1789.3,1789.2,4.7409]
[1743735459048,1.11815,1789.4,1789.3,1.11813]
[1743735459433,1.1181,1789.5,1789.4,1.11808]
[1743735459631,1.1181,1789.5,1789.4,3.2078]
[1743735460150,1.1181,1789.5,1789.4,5.82561]
[1743735461544,1.1181,1789.5,1789.4,4.7075]
[1743735461942,1.1181,1789.5,1789.4,1.4997]
[1743735462736,1.1181,1789.5,1789.4,4.7075]
[1743735463341,1.1181,1789.5,1789.4,5.82561]
[1743735464038,1.1181,1789.5,1789.4,4.7075]
[1743735464245,1.1181,1789.5,1789.4,1.4997]
[1743735466746,1.1181,1789.5,1789.4,5.82561]
[1743735467248,1.1181,1789.5,1789.4,4.7075]
[1743735468247,1.1181,1789.5,1789.4,5.82561]
[1743735469745,1.11805,1789.6,1789.5,1.11803]
[1743735469944,1.11805,1789.6,1789.5,3.36093]
[1743735471443,1.11805,1789.6,1789.5,2.2429]
[1743735471941,1.11805,1789.6,1789.5,3.36095]
[1743735472248,1.11805,1789.6,1789.5,1.4977]
[1743735472445,2.41335,1789.6,1789.5,1.4977]
[1743735472644,1.11805,1789.6,1789.5,1.4977]
[1743735472944,1.11805,1789.6,1789.5,2.61575]
[1743735473145,1.11796,1789.7,1789.6,1.11793]
[1743735473340,1.11796,1789.7,1789.6,5.73763]
[1743735473651,1.11796,1789.7,1789.6,1.4119]
[1743735473851,2.41286,1789.7,1789.6,1.4119]
[1743735474650,2.41286,1789.7,1789.6,2.52989]
[1743735474851,1.11796,1789.7,1789.6,2.52989]
[1743735475543,1.11796,1789.7,1789.6,1.4119]
[1743735476048,1.11805,1789.5,1789.4,1.11807]
[1743735476244,1.11805,1789.5,1789.4,2.54687]
[1743735476449,1.11805,1789.5,1789.4,1.4288]
[1743735476948,1.11805,1789.5,1789.4,2.54691]
[1743735477154,1.2949,1789.6,1789.4,2.54691]
[1743735477155,1.11804,1789.6,1789.5,1.11799]
[1743735477454,1.11804,1789.6,1789.5,5.84319]
[1743735477852,1.11804,1789.6,1789.5,4.7252]
[1743735478057,1.11804,1789.6,1789.5,1.5174]
[1743735478353,2.41294,1789.6,1789.5,1.5174]
[1743735481553,3.86274,1789.6,1789.5,1.5174]
[1743735482253,1.11811,1789.4,1789.3,3.2078]
[1743735482453,1.11811,1789.4,1789.3,4.635]
[1743735482953,1.1183,1789.1,1789.0,3.2078]
[1743735483256,1.11836,1789.0,1788.9,1.5038]
[1743735484056,1.11836,1789.0,1788.9,2.62223]
[1743735486355,1.11836,1789.0,1788.9,3.37683]
[1743735486555,1.11836,1789.1,1789.0,1.11832]
[1743735486757,1.11829,1789.2,1789.1,1.11826]
[1743735487356,1.11829,1789.2,1789.1,1.4043]
[1743735487758,1.11829,1789.2,1789.1,2.5226]
[1743735488257,1.11829,1789.2,1789.1,1.4043]
[1743735490857,1.82259,1789.2,1789.1,1.4043]
[1743735491056,1.11843,1788.9,1788.8,5.0451748]
[1743735491457,1.11843,1788.9,1788.8,3.9266848]
[1743735491755,1.11843,1788.9,1788.8,5.0451748]
[1743735492753,1.11843,1788.9,1788.8,3.9266848]
[1743735493257,1.11843,1788.9,1788.8,4.6598848]
[1743735493759,1.11843,1788.9,1788.8,1.4520848]
[1743735494154,1.11843,1788.9,1788.8,0.0083848]
[1743735494351,1.11843,1788.9,1788.5,1.4437]
[1743735494352,1.11861,1788.6,1788.5,1.4437]
[1743735496150,1.11861,1788.6,1788.5,2.56238]
[1743735496458,1.11861,1788.6,1788.5,5.3849]
[1743735497053,1.11861,1788.6,1788.5,2.1771]
[1743735497256,1.11861,1788.6,1788.5,5.3849]
[1743735502164,1.11861,1788.6,1788.5,6.50358]
[1743735502364,1.11861,1788.6,1788.5,6.0881]
[1743735503566,1.11861,1788.6,1788.5,4.6515]
[1743735503766,1.11861,1788.6,1788.5,1.4437]
[1743735504263,1.11868,1788.5,1788.4,0.0083848]
[1743735504766,1.11868,1788.5,1788.4,1.4136848]
[1743735507171,1.11868,1788.5,1788.4,2.5324248]
[1743735507372,1.11868,1788.5,1788.4,1.4136848]
[1743735508270,1.11868,1788.5,1788.4,2.5324248]
[1743735510973,1.1269348,1788.7,1788.6,1.11861]
[1743735511168,1.1269348,1788.7,1788.6,4.32641]
[1743735511570,1.1269348,1788.7,1788.6,6.52951]
[1743735512682,1.1269348,1788.7,1788.6,2.2031]
[1743735513488,1.1269348,1788.7,1788.6,5.4109]
[1743735514681,1.1269348,1788.7,1788.6,2.2031]
[1743735515382,1.1269348,1788.7,1788.6,6.52951]
[1743735517188,0.0083848,1788.7,1788.6,6.52951]
[1743735517575,1.1269348,1788.7,1788.6,6.52951]
[1743735518384,0.0083848,1788.7,1788.6,6.52951]
[1743735520287,1e-08,1788.7,1788.6,13.00751]
[1743735521888,2.79479,1789.8,1788.7,2.79638]
[1743735522086,1.11808,1789.5,1789.4,3.2078]
[1743735522288,1.11808,1789.5,1789.4,2.1836]
[1743735522491,1.11808,1789.5,1789.4,6.50951]
[1743735522693,3.50646,1789.9,1789.5,1.11805]
[1743735522985,1.11793,1789.7,1789.6,1.11798]
[1743735523186,1.1263148,1789.7,1789.6,4.32578]
[1743735523389,0.0083848,1789.7,1789.6,5.07278]
[1743735523585,1.1263148,1789.7,1789.6,5.07278]
[1743735523791,0.0083848,1789.7,1789.6,5.07278]
[1743735524088,0.0083848,1789.7,1789.6,7.57278]
[1743735525288,23.5096973,1789.9,1789.8,1.11786]
[1743735525483,23.5096973,1789.9,1789.8,8.30266]
[1743735525690,19.13323648,1789.9,1789.8,10.80266]
[1743735525891,16.81833648,1789.9,1789.8,10.80266]
[1743735526399,13.79201648,1789.9,1789.8,10.80266]
[1743735526694,4.8e-06,1790.0,1789.9,1.1178]
[1743735526895,4.8e-06,1790.0,1789.9,1.8629]
[1743735527193,4.8e-06,1790.0,1789.9,10.3329]
[1743735527581,4.8e-06,1790.0,1789.9,10.74900056]
[1743735528491,4.8e-06,1790.0,1789.9,1.8629]
[1743735528789,4.8e-06,1790.0,1789.8,3.2078]
[1743735528990,1.1178,1789.9,1789.8,5.77064]
[1743735529185,2.5643,1789.9,1789.8,3.2078]
[1743735529494,1.11793,1789.7,1789.6,2.56295]
[1743735529696,1.11793,1789.7,1789.6,1.445]
[1743735530288,1.11793,1789.7,1789.6,2.56299]
[1743735530994,1.11793,1789.8,1789.7,1.11792]
[1743735531293,1.11791,1789.8,1789.7,1.11792]
[1743735531496,1.11791,1789.8,1789.7,4.32572]
[1743735531683,1.11791,1789.8,1789.7,4.32573]
[1743735531889,1.11791,1789.8,1789.7,1.11793]
[1743735532797,1.11793,1789.7,1789.6,2.56294]
[1743735534296,1.11799,1789.6,1789.5,4.32581]
[1743735534487,1.4663,1789.6,1789.5,5.86541]
[1743735534692,1.11791,1789.8,1789.7,1.11788]
[1743735534891,1.11791,1789.8,1789.7,4.32568]
[1743735535092,1.11791,1789.8,1789.7,3.2078]
[1743735535389,1.11793,1789.7,1789.6,1.11798]
[1743735535590,2.58423,1789.7,1789.6,1.11798]
[1743735536194,1.11799,1789.6,1789.5,5.8654]
[1743735536497,2.58429,1789.6,1789.5,5.8654]
[1743735536695,1.11792,1789.8,1789.7,1.11789]
[1743735536903,1.11792,1789.8,1789.7,4.32569]
[1743735537091,1.11792,1789.8,1789.7,3.2078]
[1743735537399,1.11793,1789.7,1789.6,1.11794]
[1743735539292,1.11799,1789.6,1789.5,5.8654]
[1743735540900,1.11799,1789.6,1789.5,5.86545]
[1743735541299,1.11799,1789.6,1789.5,3.2078]
[1743735541505,1.11805,1789.5,1789.4,0.0083848]
[1743735541697,3.36735,1789.5,1789.4,0.0083848]
[1743735542306,5.86735,1789.5,1789.4,0.0083848]
[1743735542496,9.84235,1789.5,1789.4,1e-08]
[1743735542799,13.05015,1789.5,1789.4,1e-08]
[1743735543991,19.01815,1789.5,1789.4,1e-08]
[1743735545295,8.59545,1789.5,1789.4,1e-08]
[1743735545601,2.62745,1789.5,1789.4,1.11811001]
[1743735546002,2.62745,1789.5,1789.4,2.57041001]
[1743735549305,1.11805,1789.5,1789.4,2.57041001]
[1743735550308,1.11805,1789.5,1789.4,1.45230001]
[1743735550702,1.11805,1789.5,1789.4,2.57041001]
[1743735550909,1.11803,1789.6,1789.5,1.11805]
[1743735551107,1.11799,1789.7,1789.6,1.11795]
[1743735551305,1.11799,1789.7,1789.6,2.56205]
[1743735552504,1.11799,1789.7,1789.6,1.4441]
[1743735552906,1.11799,1789.6,1789.5,3.2078]
[1743735553505,1.11799,1789.6,1789.5,4.6328]
[1743735553810,1.11799,1789.6,1789.5,5.75085]
[1743735554010,1.11799,1789.6,1789.5,4.6328]
[1743735555011,1.11799,1789.6,1789.5,3.2078]
[1743735555702,1.11799,1789.6,1789.5,4.32585]
[1743735555902,2.54359,1789.6,1789.5,4.32585]
[1743735556108,1.11799,1789.6,1789.5,4.32585]
[1743735558107,1.11799,1789.6,1789.5,3.2078]
[1743735558808,2.54359,1789.6,1789.5,3.2078]
[1743735563712,2.54359,1789.6,1789.5,4.6125]
[1743735564703,2.54359,1789.6,1789.5,1.4047]
[1743735565510,1.11805,1789.5,1789.4,1e-08]
[1743735565709,2.58055,1789.5,1789.4,1e-08]
[1743735567019,3.32195,1789.5,1789.4,1e-08]
[1743735567711,6.52975,1789.5,1789.4,1e-08]
[1743735568816,3.32195,1789.5,1789.4,1e-08]
[1743735569220,2.58055,1789.5,1789.4,1e-08]
[1743735569517,1.11805,1789.5,1789.4,1e-08]
[1743735569819,1.11805,1789.5,1789.4,2.15780001]
[1743735570317,1.11805,1789.5,1789.4,3.27591001]
[1743735570719,1.11805,1789.5,1789.4,2.15780001]
[1743735572920,1.11805,1789.5,1789.4,1e-08]
[1743735573121,2.65085,1789.5,1789.4,1e-08]
[1743735573520,2.65085,1789.5,1789.4,1.52160001]
[1743735573921,2.65085,1789.5,1789.4,2.63971001]
[1743735574125,1.11805,1789.5,1789.4,3.37321001]
[1743735574318,1.11799,1789.7,1789.6,1.11793]
[1743735575015,1.11799,1789.7,1789.6,2.63513]
[1743735576425,1.11788,1789.8,1789.7,1.11786]
[1743735576615,1.11788,1789.8,1789.7,4.32566]
[1743735577019,1.11788,1789.8,1789.7,3.2078]
[1743735577222,1.11788,1789.8,1789.7,4.32573]
[1743735578218,1.11788,1789.8,1789.7,3.2078]
[1743735578719,1.11788,1789.8,1789.7,4.7299]
[1743735580026,2.64068,1789.8,1789.7,4.7299]
[1743735582519,2.64068,1789.8,1789.7,3.2078]
[1743735582725,1.11799,1789.6,1789.5,6.50874]
[1743735583025,1.11799,1789.6,1789.5,5.04654]
[1743735586822,1.11799,1789.6,1789.5,3.9285]
[1743735587929,1.11799,1789.6,1789.5,5.04655]
[1743735589128,1.11794,1789.8,1789.7,1.11788]
[1743735589327,1.11794,1789.8,1789.7,4.32568]
[1743735589524,1.11794,1789.8,1789.7,3.2078]
[1743735590436,2.59674,1789.8,1789.7,3.2078]
[1743735591335,9.83494,1789.8,1789.7,3.2078]
[1743735591730,9.83494,1789.8,1789.4,1.85160001]
[1743735591731,1.11805,1789.5,1789.4,3.94130001]
[1743735592030,1.11805,1789.5,1789.4,1e-08]
[1743735592434,2.56815,1789.5,1789.4,1e-08]
[1743735593129,1.11805,1789.5,1789.4,3.20780001]
[1743735594244,1.11805,1789.5,1789.4,4.68230001]
[1743735595426,1.11805,1789.5,1789.4,5.80041001]
[1743735596732,1.11805,1789.5,1789.4,4.68230001]
[1743735597236,1.11805,1789.5,1789.4,3.20780001]
[1743735597736,1.11798,1789.7,1789.4,3.20780001]
[1743735597938,1.11798,1789.7,1789.6,4.32574]
[1743735598133,2.7943948,1790.0,1789.6,3.2078]
[1743735598338,1.11786,1789.8,1789.7,3.0357]
[1743735598537,1.11786,1789.8,1789.7,2.61513]
[1743735599328,1.11786,1789.8,1789.7,1.4972]
[1743735600939,1.11793,1789.7,1789.6,3.2078]
[1743735601144,2.52963,1789.7,1789.6,3.2078]
[1743735601337,2.52963,1789.7,1789.6,4.32579]
[1743735601532,2.52963,1789.7,1789.6,3.2078]
[1743735601940,1.11793,1789.7,1789.6,4.32579]
[1743735602444,1.11793,1789.7,1789.6,3.2078]
[1743735602642,1.11793,1789.7,1789.6,4.32579]
[1743735602844,1.11793,1789.7,1789.6,3.2078]
[1743735603538,1.11805,1789.5,1789.4,3.20780001]
[1743735603944,5.08805,1789.5,1789.4,3.20780001]
[1743735608356,7.58805,1789.5,1789.4,1e-08]
[1743735608852,10.79585,1789.5,1789.4,1e-08]
[1743735610052,8.29585,1789.5,1789.4,1e-08]
[1743735610347,10.79585,1789.5,1789.4,1e-08]
[1743735612455,4.32585,1789.5,1789.4,1e-08]
[1743735612650,5.08705,1789.5,1789.4,1e-08]
[1743735613949,5.08705,1789.5,1789.4,1.39570001]
[1743735615958,5.08705,1789.5,1789.4,1e-08]
[1743735616659,1.11805,1789.5,1789.4,1e-08]
[1743735616853,5.08705,1789.5,1789.4,1e-08]
[1743735617661,5.08705,1789.5,1789.4,1.46140001]
[1743735617958,1.11805,1789.5,1789.4,4.66920001]
[1743735618161,1.11805,1789.5,1789.4,5.78731001]
[1743735618363,1.11801,1789.6,1789.5,1.118]
[1743735618561,2.79452,1789.9,1789.5,2.2165]
[1743735618757,1.11786,1789.8,1789.7,4.32573]
[1743735620767,1.11786,1789.9,1789.8,1.11783]
[1743735623568,1.11786,1789.9,1789.7,3.2078]
[1743735623569,4.8e-06,1790.0,1789.7,3.2078]
[1743735623776,4.8e-06,1790.0,1789.9,4.3256]
[1743735625272,4.8e-06,1790.0,1789.9,6.8256]
[1743735625768,4.8e-06,1790.0,1789.9,7.5513]
[1743735628272,1.1177448,1790.0,1789.9,3.9335]
[1743735628473,1.1177448,1790.0,1789.9,5.0513]
[1743735628873,1.1177448,1790.0,1789.9,0.7257]
[1743735629077,1.11786,1789.8,1789.7,3.2078]
[1743735629275,1.11786,1789.8,1789.7,4.32573]
[1743735630774,1.11786,1789.8,1789.7,3.2078]
[1743735630976,1.11799,1789.6,1789.5,3.2078]
[1743735631174,1.11805,1789.5,1789.4,3.20780001]
[1743735632179,2.60675,1789.5,1789.4,3.20780001]
[1743735632378,2.60675,1789.5,1789.4,1e-08]
[1743735633176,1.11802,1789.6,1789.4,3.20780001]
[1743735633385,1.11802,1789.6,1789.5,1.11802]
[1743735633575,1.11798,1789.7,1789.6,1.11797]
[1743735633770,1.11798,1789.7,1789.6,4.32579]
[1743735633977,1.11784,1789.9,1789.7,1.11793]
[1743735634184,4.8e-06,1790.0,1789.9,1.1178]
[1743735634382,1.1177448,1790.0,1789.9,1.1178]
[1743735635084,4.8e-06,1790.0,1789.9,5.7807]
[1743735635477,4.8e-06,1790.0,1789.9,8.2807]
[1743735636679,4.8e-06,1790.0,1789.9,12.2457]
[1743735637575,1.11742,1790.6,1790.5,1.11741]
[1743735637770,3.965,1790.8,1790.5,3.2078]
[1743735637975,1.11749,1790.4,1790.3,3.2078]
[1743735638384,2.61809,1790.4,1790.3,3.2078]
[1743735638773,2.61809,1790.4,1790.1,1.4231]
[1743735638774,1.11755,1790.3,1790.2,0.0083848]
[1743735638974,3.38405,1790.3,1790.2,0.0083848]
[1743735643585,5.88405,1790.3,1790.2,0.0083848]
[1743735644382,1.11768,1790.1,1790.0,3.2078]
[1743735644985,2.61548,1790.1,1790.0,3.2078]
[1743735647387,2.61548,1790.1,1790.0,4.7319]
[1743735647778,2.61548,1790.1,1790.0,5.84964]
[1743735647977,4.7263,1790.2,1790.0,5.84964]